{"text_format":"1","workbook":"xlsx","n_sheets":4,"sheets":["Бланк Методички","Обработка","Печать","Печать с расшифровкой"],"not_rendered":{"charts":0,"images":1,"macros":1,"external_links":0,"defined_names":1,"comments":0,"pivot_tables":0},"unopened":[],"bounds":{"document_bytes":16777216,"sheet_cells":100000,"rows_first":2000,"rows_last":500,"rows_between":2000,"halvings":0,"cell_chars":16384,"cell_head_chars":4096},"cells_cut":0,"cells_raw":0,"read":"whole","date_system":"1900"}

{"sheet":"Бланк Методички","index":0,"n_rows":61,"n_cols":34,"rows_kept":61,"cut":false,"hidden":false,"merged":[[56,14,56,15],[57,14,57,15],[58,14,58,15],[59,14,59,15],[60,14,60,15],[51,14,51,15],[52,14,52,15],[53,14,53,15],[54,14,54,15],[55,14,55,15],[46,14,46,15],[47,14,47,15],[48,14,48,15],[49,14,49,15],[50,14,50,15],[41,14,41,15],[42,14,42,15],[43,14,43,15],[44,14,44,15],[45,14,45,15],[37,14,37,15],[38,14,38,15],[39,14,39,15],[40,14,40,15],[31,14,31,15],[32,14,32,15],[33,14,33,15],[34,14,34,15],[35,14,35,15],[28,14,28,15],[29,14,29,15],[30,14,30,15],[21,14,21,15],[22,14,22,15],[23,14,23,15],[24,14,24,15],[25,14,25,15],[36,14,36,15],[1,0,1,2],[50,1,50,13],[18,1,18,13],[19,1,19,13],[8,1,8,13],[9,1,9,13],[10,1,10,13],[11,1,11,13],[12,1,12,13],[43,1,43,13],[3,0,6,15],[1,3,1,15],[41,1,41,13],[42,1,42,13],[48,1,48,13],[49,1,49,13],[34,1,34,13],[35,1,35,13],[36,1,36,13],[37,1,37,13],[38,1,38,13],[44,1,44,13],[39,1,39,13],[40,1,40,13],[53,1,53,13],[54,1,54,13],[55,1,55,13],[56,1,56,13],[2,15,2,18],[8,14,8,15],[9,14,9,15],[10,14,10,15],[16,14,16,15],[17,14,17,15],[18,14,18,15],[19,14,19,15],[20,14,20,15],[11,14,11,15],[12,14,12,15],[13,14,13,15],[14,14,14,15],[15,14,15,15],[26,14,26,15],[27,14,27,15],[30,1,30,13],[31,1,31,13],[32,1,32,13],[33,1,33,13],[58,1,58,13],[59,1,59,13],[60,1,60,13],[13,1,13,13],[14,1,14,13],[15,1,15,13],[16,1,16,13],[17,1,17,13],[20,1,20,13],[21,1,21,13],[22,1,22,13],[23,1,23,13],[57,1,57,13],[24,1,24,13],[25,1,25,13],[26,1,26,13],[27,1,27,13],[28,1,28,13],[29,1,29,13],[45,1,45,13],[46,1,46,13],[47,1,47,13],[51,1,51,13],[52,1,52,13]]}
[null,null,null,null,null,null,null,null,null,null,null,null,null,null,null,null,null,null,null,null,null,null,null,null,null,null,null,null,null,null,null,null,10,"5 А"]
["Фамилия, имя",null,null,null,null,null,null,null,null,null,null,null,null,null,null,null,null,null,null,null,null,null,null,null,null,null,null,null,null,null,null,null,11,"5 Б"]
[null,null,null,null,null,null,null,null,null,null,null,null,null,null,null,null,null,null,null,null,null,null,null,null,null,null,null,null,null,null,null,null,12,"5 В"]
["Внимательно прочитайте каждый вопрос и все предложенные варианты ответов к нему. Выберите один вариант ответа, который соответствует Вашему мнению, и обведите его кружком. Необходимо отметить один вариант ответа в каждой строке. ",null,null,null,null,null,null,null,null,null,null,null,null,null,null,null,null,null,null,null,null,null,null,null,null,null,null,null,null,null,null,null,13]
[null,null,null,null,null,null,null,null,null,null,null,null,null,null,null,null,null,null,null,null,null,null,null,null,null,null,null,null,null,null,null,null,14]
[null,null,null,null,null,null,null,null,null,null,null,null,null,null,null,null,null,null,null,null,null,null,null,null,null,null,null,null,null,null,null,null,15]
[null,null,null,null,null,null,null,null,null,null,null,null,null,null,null,null,null,null,null,null,null,null,null,null,null,null,null,null,null,null,null,null,16]
[]
[1,"Бывает, что Вы ссоритесь с родителями"]
[2,"Бывает, что Вам так и хочется выругаться",null,null,null,null,null,null,null,null,null,null,null,null,null,null,null,null,null,null,null,"Никогда"]
[3,"Бывает, что Вы откладываете на завтра то, что должны сделать сегодня",null,null,null,null,null,null,null,null,null,null,null,null,null,null,null,null,null,null,null,"Иногда"]
[4,"Вам бы хотелось быть очень красивым, чтобы люди везде обращали на Вас внимание",null,null,null,null,null,null,null,null,null,null,null,null,null,null,null,null,null,null,null,"Затрудняюсь"]
[5,"Вам не хочется, чтобы окружающие догадывались, какой Вы, что у Вас на душе",null,null,null,null,null,null,null,null,null,null,null,null,null,null,null,null,null,null,null,"Часто"]
[6,"Вам присуще в повседневной жизни действовать под влиянием момента, не думая о возможных последствиях",null,null,null,null,null,null,null,null,null,null,null,null,null,null,null,null,null,null,null,"Всегда"]
[7,"Вам присуще поступать под влиянием эмоций"]
[8,"Вам тяжело бороться со своими привычками"]
[9,"Вас легко вовлечь в действия, которые, как Вам известно, являются плохими и неправильными"]
[10,"Вас считают человеком, на которого всегда можно положиться"]
[11,"Ваши манеры за столом в гостях более хороши, чем у себя дома"]
[12,"Вы бы расстроились, если бы пришлось переезжать в новое место и заводить там новых друзей"]
[13,"Вы замечали иногда, просыпаясь утром, что так сильно ворочались и метались во сне, что вся постель в беспорядке"]
[14,"Вы нарушаете установленные правила"]
[15,"Вы любите говорить людям о том, что нужно соблюдать правила"]
[16,"Вы любите ездить на большой скорости, даже если это связано с риском для жизни"]
[17,"Вы любите, когда вам подробно объясняют,что и как следует делать"]
[18,"Вы не всегда говорите правду"]
[19,"Вы не любите, когда у Вас с кем-то портятся отношения, особенно если разногласия грозят стать окончательными"]
[20,"Ваши родители обладают недостаточной терпеливостью в отношении Вас"]
[21,"Вы не очень надежны, на Вас не стоит полагаться"]
[22,"Вы обожаете узнавать заранее, что вам подарят или чем закончится непрочитанная книга"]
[23,"Вы обсуждаете свои дела с родителями"]
[24,"Вы точный и аккуратный человек"]
[25,"Вы отмечаете за собой некоторую поспешность в принятии решений"]
[26,"Вы отмечаете за собой склонность говорить не думая"]
[27,"Вы предпочитали бы быть артистом эстрады, нежели врачом"]
[28,"Вы привыкли много есть, даже если не очень хочется"]
[29,"Вы просто не уважаете себя"]
[30,"Вы склонны к тщательному предварительному обдумыванию того, что хотите сделать"]
[31,"Вы спрашиваете совета у родителей относительно своих дел и поступков"]
[32,"Вы стараетесь не думать о своих проблемах"]
[33,"Ваши родители жалуются кому-то на Вас"]
[34,"Вы считаете, что большинство людей способно солгать, если это в их интересах"]
[35,"Вы считаете, что делаете то, что должны делать в жизни"]
[36,"Вы считаете, что каждый человек от чего-то зависим"]
[37,"Вы умеете вовремя остановиться, если чувствуете, что начинаете проигрывать"]
[38,"Вы ругаете себя за поспешные решения"]
[39,"Вы чувствуете беспомощность. Вам нужно, чтобы кто-нибудь был рядом"]
[40,"Вы чувствуете вялость, апатию: все, что раньше волновало Вас, стало безразличным"]
[41,"Ваши родители хотели бы, чтобы Вы стали другим, изменились"]
[42,"Вы чувствуете себя порою настолько запутавшимся, что сами не понимаете, что делаете"]
[43,"Глупо пытаться показать свою силу воли и отказаться от различных радостей жизни"]
[44,"Если бы все стали делать нечто такое, что Вы считаете неправильным, то Вы присоединились бы к ним"]
[45,"Если Вам что-то сильно досаждает, то, по-вашему, лучше стараться не обращать внимания на это, пока не остынешь"]
[46,"Если Вы сделаете что-нибудь не так, Ваши родители постоянно и везде говорят об этом"]
[47,"Вы говорите глупости только для того, чтобы посмотреть, что на это скажут другие"]
[48,"Вы переходите улицу там, где Вам удобно, а не там, где положено"]
[49,"Когда вам нужно сделать что-то по дому, Вы просто не делаете этого"]
[50,"Когда Вы должны что-то осуществить, Вас охватывает страх перед провалом: вдруг не получится"]
[51,"Прежде, чем высказать что-то приятелям, Вы должны убедиться в собственной правоте"]
[52,"У Вас такое чувство, что Вы злитесь на весь мир"]
[53,"Характеристика «симпатичный, приятный человек» подходит Вам больше, чем «надежный вожак»"]

{"sheet":"Обработка","index":1,"n_rows":53,"n_cols":15,"rows_kept":53,"cut":false,"hidden":true,"merged":[[0,4,6,4],[0,5,6,5],[0,6,6,6],[0,7,6,7],[0,8,6,8],[0,9,6,9],[0,10,6,10],[0,14,0,18],[1,14,1,18],[2,14,2,18]]}
[1,{"$f":"'Бланк Методички'!O9","v":0},{"$f":"IF(B1='Бланк Методички'!$V$10,1,IF(B1='Бланк Методички'!$V$11,2,IF(B1='Бланк Методички'!$V$12,3,IF(B1='Бланк Методички'!$V$13,4,IF(B1='Бланк Методички'!$V$14,5,0)))))","v":0},{"$f":"IF(C1=1,5,IF(C1=2,4,IF(C1=3,3,IF(C1=4,2,IF(C1=5,1,0)))))","v":0},"Импульсивность","Слабость «Сверх-Я»","Дезадаптированность ","Враждебность родителей","Безрассудность","Склонность к зависимостям","Социальная желательность",null,130,160,"Признаки склонности"]
[2,{"$f":"'Бланк Методички'!O10","v":0},{"$f":"IF(B2='Бланк Методички'!$V$10,1,IF(B2='Бланк Методички'!$V$11,2,IF(B2='Бланк Методички'!$V$12,3,IF(B2='Бланк Методички'!$V$13,4,IF(B2='Бланк Методички'!$V$14,5,0)))))","v":0},{"$f":"IF(C2=1,5,IF(C2=2,4,IF(C2=3,3,IF(C2=4,2,IF(C2=5,1,0)))))","v":0},null,{"$f":"IF('Бланк Методички'!O24=\"Да\",2, IF('Бланк Методички'!O24=\"Не знаю\",1,0))","v":0},{"$f":"IF('Бланк Методички'!O39=\"Да\",2,IF('Бланк Методички'!O39=\"Не знаю\",1,0))","v":0},{"$f":"IF('Бланк Методички'!O54=\"Да\",2,IF('Бланк Методички'!O54=\"Не знаю\",1,0))","v":0},{"$f":"IF('Бланк Методички'!O69=\"Да\",2,IF('Бланк Методички'!O69=\"Не знаю\",1,0))","v":0},null,null,null,161,200,"Признаки повышенной склонности"]
[3,{"$f":"'Бланк Методички'!O11","v":0},{"$f":"IF(B3='Бланк Методички'!$V$10,1,IF(B3='Бланк Методички'!$V$11,2,IF(B3='Бланк Методички'!$V$12,3,IF(B3='Бланк Методички'!$V$13,4,IF(B3='Бланк Методички'!$V$14,5,0)))))","v":0},0,null,{"$f":"IF('Бланк Методички'!O25=\"Да\",2, IF('Бланк Методички'!O25=\"Не знаю\",1,0))","v":0},{"$f":"IF('Бланк Методички'!O40=\"Да\",2,IF('Бланк Методички'!O40=\"Не знаю\",1,0))","v":0},{"$f":"IF('Бланк Методички'!O55=\"Да\",2,IF('Бланк Методички'!O55=\"Не знаю\",1,0))","v":0},{"$f":"IF('Бланк Методички'!O70=\"Да\",2,IF('Бланк Методички'!O70=\"Не знаю\",1,0))","v":0},null,null,null,201,265,"Признаки высокой вероятности"]
[4,{"$f":"'Бланк Методички'!O12","v":0},{"$f":"IF(B4='Бланк Методички'!$V$10,1,IF(B4='Бланк Методички'!$V$11,2,IF(B4='Бланк Методички'!$V$12,3,IF(B4='Бланк Методички'!$V$13,4,IF(B4='Бланк Методички'!$V$14,5,0)))))","v":0},null,null,{"$f":"IF('Бланк Методички'!O26=\"Да\",2, IF('Бланк Методички'!O26=\"Не знаю\",1,0))","v":0},{"$f":"IF('Бланк Методички'!O41=\"Да\",2,IF('Бланк Методички'!O41=\"Не знаю\",1,0))","v":0},{"$f":"IF('Бланк Методички'!O56=\"Да\",2,IF('Бланк Методички'!O56=\"Не знаю\",1,0))","v":0},{"$f":"IF('Бланк Методички'!O71=\"Да\",2,IF('Бланк Методички'!O71=\"Не знаю\",1,0))","v":0}]
[5,{"$f":"'Бланк Методички'!O13","v":0},{"$f":"IF(B5='Бланк Методички'!$V$10,1,IF(B5='Бланк Методички'!$V$11,2,IF(B5='Бланк Методички'!$V$12,3,IF(B5='Бланк Методички'!$V$13,4,IF(B5='Бланк Методички'!$V$14,5,0)))))","v":0},null,null,{"$f":"IF('Бланк Методички'!O27=\"Да\",2, IF('Бланк Методички'!O27=\"Не знаю\",1,0))","v":0},{"$f":"IF('Бланк Методички'!O42=\"Да\",2,IF('Бланк Методички'!O42=\"Не знаю\",1,0))","v":0},{"$f":"IF('Бланк Методички'!O57=\"Да\",2,IF('Бланк Методички'!O57=\"Не знаю\",1,0))","v":0},{"$f":"IF('Бланк Методички'!O72=\"Да\",2,IF('Бланк Методички'!O72=\"Не знаю\",1,0))","v":0}]
[6,{"$f":"'Бланк Методички'!O14","v":0},{"$f":"IF(B6='Бланк Методички'!$V$10,1,IF(B6='Бланк Методички'!$V$11,2,IF(B6='Бланк Методички'!$V$12,3,IF(B6='Бланк Методички'!$V$13,4,IF(B6='Бланк Методички'!$V$14,5,0)))))","v":0},null,null,{"$f":"IF('Бланк Методички'!O28=\"Да\",2, IF('Бланк Методички'!O28=\"Не знаю\",1,0))","v":0},{"$f":"IF('Бланк Методички'!O43=\"Да\",2,IF('Бланк Методички'!O43=\"Не знаю\",1,0))","v":0},{"$f":"IF('Бланк Методички'!O58=\"Да\",2,IF('Бланк Методички'!O58=\"Не знаю\",1,0))","v":0},{"$f":"IF('Бланк Методички'!O73=\"Да\",2,IF('Бланк Методички'!O73=\"Не знаю\",1,0))","v":0}]
[7,{"$f":"'Бланк Методички'!O15","v":0},{"$f":"IF(B7='Бланк Методички'!$V$10,1,IF(B7='Бланк Методички'!$V$11,2,IF(B7='Бланк Методички'!$V$12,3,IF(B7='Бланк Методички'!$V$13,4,IF(B7='Бланк Методички'!$V$14,5,0)))))","v":0},null,null,{"$f":"IF('Бланк Методички'!O29=\"Да\",2, IF('Бланк Методички'!O29=\"Не знаю\",1,0))","v":0},{"$f":"IF('Бланк Методички'!O44=\"Да\",2,IF('Бланк Методички'!O44=\"Не знаю\",1,0))","v":0},{"$f":"IF('Бланк Методички'!O59=\"Да\",2,IF('Бланк Методички'!O59=\"Не знаю\",1,0))","v":0},{"$f":"IF('Бланк Методички'!O74=\"Да\",2,IF('Бланк Методички'!O74=\"Не знаю\",1,0))","v":0}]
[8,{"$f":"'Бланк Методички'!O16","v":0},{"$f":"IF(B8='Бланк Методички'!$V$10,1,IF(B8='Бланк Методички'!$V$11,2,IF(B8='Бланк Методички'!$V$12,3,IF(B8='Бланк Методички'!$V$13,4,IF(B8='Бланк Методички'!$V$14,5,0)))))","v":0},null,{"$f":"C4","v":0},{"$f":"C9","v":0},{"$f":"C5","v":0},{"$f":"C20","v":0},{"$f":"C16","v":0},{"$f":"C8","v":0},{"$f":"C34","v":0}]
[9,{"$f":"'Бланк Методички'!O17","v":0},{"$f":"IF(B9='Бланк Методички'!$V$10,1,IF(B9='Бланк Методички'!$V$11,2,IF(B9='Бланк Методички'!$V$12,3,IF(B9='Бланк Методички'!$V$13,4,IF(B9='Бланк Методички'!$V$14,5,0)))))","v":0},null,{"$f":"C6","v":0},{"$f":"C12","v":0},{"$f":"C19","v":0},{"$f":"C33","v":0},{"$f":"C22","v":0},{"$f":"C36","v":0},{"$f":"D1","v":0}]
[10,{"$f":"'Бланк Методички'!O18","v":0},{"$f":"IF(B10='Бланк Методички'!$V$10,1,IF(B10='Бланк Методички'!$V$11,2,IF(B10='Бланк Методички'!$V$12,3,IF(B10='Бланк Методички'!$V$13,4,IF(B10='Бланк Методички'!$V$14,5,0)))))","v":0},0,{"$f":"C7","v":0},{"$f":"C44","v":0},{"$f":"C21","v":0},{"$f":"C41","v":0},{"$f":"C28","v":0},{"$f":"C43","v":0},{"$f":"D2","v":0}]
[11,{"$f":"'Бланк Методички'!O19","v":0},{"$f":"IF(B11='Бланк Методички'!$V$10,1,IF(B11='Бланк Методички'!$V$11,2,IF(B11='Бланк Методички'!$V$12,3,IF(B11='Бланк Методички'!$V$13,4,IF(B11='Бланк Методички'!$V$14,5,0)))))","v":0},0,{"$f":"C13","v":0},{"$f":"C49","v":0},{"$f":"C29","v":0},{"$f":"C46","v":0},{"$f":"D37","v":0},null,{"$f":"D3","v":0}]
[12,{"$f":"'Бланк Методички'!O20","v":0},{"$f":"IF(B12='Бланк Методички'!$V$10,1,IF(B12='Бланк Методички'!$V$11,2,IF(B12='Бланк Методички'!$V$12,3,IF(B12='Бланк Методички'!$V$13,4,IF(B12='Бланк Методички'!$V$14,5,0)))))","v":0},null,{"$f":"C25","v":0},{"$f":"C53","v":0},{"$f":"C32","v":0},null,null,null,{"$f":"D11","v":0}]
[13,{"$f":"'Бланк Методички'!O21","v":0},{"$f":"IF(B13='Бланк Методички'!$V$10,1,IF(B13='Бланк Методички'!$V$11,2,IF(B13='Бланк Методички'!$V$12,3,IF(B13='Бланк Методички'!$V$13,4,IF(B13='Бланк Методички'!$V$14,5,0)))))","v":0},null,{"$f":"C26","v":0},{"$f":"D15","v":0},{"$f":"C39","v":0},null,null,null,{"$f":"D14","v":0}]
[14,{"$f":"'Бланк Методички'!O22","v":0},{"$f":"IF(B14='Бланк Методички'!$V$10,1,IF(B14='Бланк Методички'!$V$11,2,IF(B14='Бланк Методички'!$V$12,3,IF(B14='Бланк Методички'!$V$13,4,IF(B14='Бланк Методички'!$V$14,5,0)))))","v":0},0,{"$f":"C27","v":0},{"$f":"D23","v":0},{"$f":"C40","v":0},null,null,null,{"$f":"D18","v":0}]
[15,{"$f":"'Бланк Методички'!O23","v":0},{"$f":"IF(B15='Бланк Методички'!$V$10,1,IF(B15='Бланк Методички'!$V$11,2,IF(B15='Бланк Методички'!$V$12,3,IF(B15='Бланк Методички'!$V$13,4,IF(B15='Бланк Методички'!$V$14,5,0)))))","v":0},0,{"$f":"C38","v":0},{"$f":"D31","v":0},{"$f":"C50","v":0},null,null,null,{"$f":"D48","v":0}]
[16,{"$f":"'Бланк Методички'!O24","v":0},{"$f":"IF(B16='Бланк Методички'!$V$10,1,IF(B16='Бланк Методички'!$V$11,2,IF(B16='Бланк Методички'!$V$12,3,IF(B16='Бланк Методички'!$V$13,4,IF(B16='Бланк Методички'!$V$14,5,0)))))","v":0},null,{"$f":"C42","v":0},{"$f":"D51","v":0},{"$f":"C52","v":0}]
[17,{"$f":"'Бланк Методички'!O25","v":0},{"$f":"IF(B17='Бланк Методички'!$V$10,1,IF(B17='Бланк Методички'!$V$11,2,IF(B17='Бланк Методички'!$V$12,3,IF(B17='Бланк Методички'!$V$13,4,IF(B17='Бланк Методички'!$V$14,5,0)))))","v":0},0,{"$f":"C47","v":0},{"$f":"SUM(F2:F16)","v":0},0,0,0,0,0]
[18,{"$f":"'Бланк Методички'!O26","v":0},{"$f":"IF(B18='Бланк Методички'!$V$10,1,IF(B18='Бланк Методички'!$V$11,2,IF(B18='Бланк Методички'!$V$12,3,IF(B18='Бланк Методички'!$V$13,4,IF(B18='Бланк Методички'!$V$14,5,0)))))","v":0},0,{"$f":"D10","v":0}]
[19,{"$f":"'Бланк Методички'!O27","v":0},{"$f":"IF(B19='Бланк Методички'!$V$10,1,IF(B19='Бланк Методички'!$V$11,2,IF(B19='Бланк Методички'!$V$12,3,IF(B19='Бланк Методички'!$V$13,4,IF(B19='Бланк Методички'!$V$14,5,0)))))","v":0},null,{"$f":"D17","v":0}]
[20,{"$f":"'Бланк Методички'!O28","v":0},{"$f":"IF(B20='Бланк Методички'!$V$10,1,IF(B20='Бланк Методички'!$V$11,2,IF(B20='Бланк Методички'!$V$12,3,IF(B20='Бланк Методички'!$V$13,4,IF(B20='Бланк Методички'!$V$14,5,0)))))","v":0},null,{"$f":"D24","v":0}]
[21,{"$f":"'Бланк Методички'!O29","v":0},{"$f":"IF(B21='Бланк Методички'!$V$10,1,IF(B21='Бланк Методички'!$V$11,2,IF(B21='Бланк Методички'!$V$12,3,IF(B21='Бланк Методички'!$V$13,4,IF(B21='Бланк Методички'!$V$14,5,0)))))","v":0},null,{"$f":"D30","v":0}]
[22,{"$f":"'Бланк Методички'!O30","v":0},{"$f":"IF(B22='Бланк Методички'!$V$10,1,IF(B22='Бланк Методички'!$V$11,2,IF(B22='Бланк Методички'!$V$12,3,IF(B22='Бланк Методички'!$V$13,4,IF(B22='Бланк Методички'!$V$14,5,0)))))","v":0},null,{"$f":"D35","v":0}]
[23,{"$f":"'Бланк Методички'!O31","v":0},{"$f":"IF(B23='Бланк Методички'!$V$10,1,IF(B23='Бланк Методички'!$V$11,2,IF(B23='Бланк Методички'!$V$12,3,IF(B23='Бланк Методички'!$V$13,4,IF(B23='Бланк Методички'!$V$14,5,0)))))","v":0},0,{"$f":"D45","v":0}]
[24,{"$f":"'Бланк Методички'!O32","v":0},{"$f":"IF(B24='Бланк Методички'!$V$10,1,IF(B24='Бланк Методички'!$V$11,2,IF(B24='Бланк Методички'!$V$12,3,IF(B24='Бланк Методички'!$V$13,4,IF(B24='Бланк Методички'!$V$14,5,0)))))","v":0},0,{"$f":"SUM(E8:E23)","v":0}]
[25,{"$f":"'Бланк Методички'!O33","v":0},{"$f":"IF(B25='Бланк Методички'!$V$10,1,IF(B25='Бланк Методички'!$V$11,2,IF(B25='Бланк Методички'!$V$12,3,IF(B25='Бланк Методички'!$V$13,4,IF(B25='Бланк Методички'!$V$14,5,0)))))","v":0}]
[26,{"$f":"'Бланк Методички'!O34","v":0},{"$f":"IF(B26='Бланк Методички'!$V$10,1,IF(B26='Бланк Методички'!$V$11,2,IF(B26='Бланк Методички'!$V$12,3,IF(B26='Бланк Методички'!$V$13,4,IF(B26='Бланк Методички'!$V$14,5,0)))))","v":0},null,"Сумма:",{"$f":"SUM(E24,F17:K17)","v":0}]
[27,{"$f":"'Бланк Методички'!O35","v":0},{"$f":"IF(B27='Бланк Методички'!$V$10,1,IF(B27='Бланк Методички'!$V$11,2,IF(B27='Бланк Методички'!$V$12,3,IF(B27='Бланк Методички'!$V$13,4,IF(B27='Бланк Методички'!$V$14,5,0)))))","v":0}]
[28,{"$f":"'Бланк Методички'!O36","v":0},{"$f":"IF(B28='Бланк Методички'!$V$10,1,IF(B28='Бланк Методички'!$V$11,2,IF(B28='Бланк Методички'!$V$12,3,IF(B28='Бланк Методички'!$V$13,4,IF(B28='Бланк Методички'!$V$14,5,0)))))","v":0}]
[29,{"$f":"'Бланк Методички'!O37","v":0},{"$f":"IF(B29='Бланк Методички'!$V$10,1,IF(B29='Бланк Методички'!$V$11,2,IF(B29='Бланк Методички'!$V$12,3,IF(B29='Бланк Методички'!$V$13,4,IF(B29='Бланк Методички'!$V$14,5,0)))))","v":0}]
[30,{"$f":"'Бланк Методички'!O38","v":0},{"$f":"IF(B30='Бланк Методички'!$V$10,1,IF(B30='Бланк Методички'!$V$11,2,IF(B30='Бланк Методички'!$V$12,3,IF(B30='Бланк Методички'!$V$13,4,IF(B30='Бланк Методички'!$V$14,5,0)))))","v":0},0]
[31,{"$f":"'Бланк Методички'!O39","v":0},{"$f":"IF(B31='Бланк Методички'!$V$10,1,IF(B31='Бланк Методички'!$V$11,2,IF(B31='Бланк Методички'!$V$12,3,IF(B31='Бланк Методички'!$V$13,4,IF(B31='Бланк Методички'!$V$14,5,0)))))","v":0},0]
[32,{"$f":"'Бланк Методички'!O40","v":0},{"$f":"IF(B32='Бланк Методички'!$V$10,1,IF(B32='Бланк Методички'!$V$11,2,IF(B32='Бланк Методички'!$V$12,3,IF(B32='Бланк Методички'!$V$13,4,IF(B32='Бланк Методички'!$V$14,5,0)))))","v":0}]
[33,{"$f":"'Бланк Методички'!O41","v":0},{"$f":"IF(B33='Бланк Методички'!$V$10,1,IF(B33='Бланк Методички'!$V$11,2,IF(B33='Бланк Методички'!$V$12,3,IF(B33='Бланк Методички'!$V$13,4,IF(B33='Бланк Методички'!$V$14,5,0)))))","v":0}]
[34,{"$f":"'Бланк Методички'!O42","v":0},{"$f":"IF(B34='Бланк Методички'!$V$10,1,IF(B34='Бланк Методички'!$V$11,2,IF(B34='Бланк Методички'!$V$12,3,IF(B34='Бланк Методички'!$V$13,4,IF(B34='Бланк Методички'!$V$14,5,0)))))","v":0}]
[35,{"$f":"'Бланк Методички'!O43","v":0},{"$f":"IF(B35='Бланк Методички'!$V$10,1,IF(B35='Бланк Методички'!$V$11,2,IF(B35='Бланк Методички'!$V$12,3,IF(B35='Бланк Методички'!$V$13,4,IF(B35='Бланк Методички'!$V$14,5,0)))))","v":0},0]
[36,{"$f":"'Бланк Методички'!O44","v":0},{"$f":"IF(B36='Бланк Методички'!$V$10,1,IF(B36='Бланк Методички'!$V$11,2,IF(B36='Бланк Методички'!$V$12,3,IF(B36='Бланк Методички'!$V$13,4,IF(B36='Бланк Методички'!$V$14,5,0)))))","v":0}]
[37,{"$f":"'Бланк Методички'!O45","v":0},{"$f":"IF(B37='Бланк Методички'!$V$10,1,IF(B37='Бланк Методички'!$V$11,2,IF(B37='Бланк Методички'!$V$12,3,IF(B37='Бланк Методички'!$V$13,4,IF(B37='Бланк Методички'!$V$14,5,0)))))","v":0},0]
[38,{"$f":"'Бланк Методички'!O46","v":0},{"$f":"IF(B38='Бланк Методички'!$V$10,1,IF(B38='Бланк Методички'!$V$11,2,IF(B38='Бланк Методички'!$V$12,3,IF(B38='Бланк Методички'!$V$13,4,IF(B38='Бланк Методички'!$V$14,5,0)))))","v":0}]
[39,{"$f":"'Бланк Методички'!O47","v":0},{"$f":"IF(B39='Бланк Методички'!$V$10,1,IF(B39='Бланк Методички'!$V$11,2,IF(B39='Бланк Методички'!$V$12,3,IF(B39='Бланк Методички'!$V$13,4,IF(B39='Бланк Методички'!$V$14,5,0)))))","v":0}]
[40,{"$f":"'Бланк Методички'!O48","v":0},{"$f":"IF(B40='Бланк Методички'!$V$10,1,IF(B40='Бланк Методички'!$V$11,2,IF(B40='Бланк Методички'!$V$12,3,IF(B40='Бланк Методички'!$V$13,4,IF(B40='Бланк Методички'!$V$14,5,0)))))","v":0}]
[41,{"$f":"'Бланк Методички'!O49","v":0},{"$f":"IF(B41='Бланк Методички'!$V$10,1,IF(B41='Бланк Методички'!$V$11,2,IF(B41='Бланк Методички'!$V$12,3,IF(B41='Бланк Методички'!$V$13,4,IF(B41='Бланк Методички'!$V$14,5,0)))))","v":0}]
[42,{"$f":"'Бланк Методички'!O50","v":0},{"$f":"IF(B42='Бланк Методички'!$V$10,1,IF(B42='Бланк Методички'!$V$11,2,IF(B42='Бланк Методички'!$V$12,3,IF(B42='Бланк Методички'!$V$13,4,IF(B42='Бланк Методички'!$V$14,5,0)))))","v":0}]
[43,{"$f":"'Бланк Методички'!O51","v":0},{"$f":"IF(B43='Бланк Методички'!$V$10,1,IF(B43='Бланк Методички'!$V$11,2,IF(B43='Бланк Методички'!$V$12,3,IF(B43='Бланк Методички'!$V$13,4,IF(B43='Бланк Методички'!$V$14,5,0)))))","v":0}]
[44,{"$f":"'Бланк Методички'!O52","v":0},{"$f":"IF(B44='Бланк Методички'!$V$10,1,IF(B44='Бланк Методички'!$V$11,2,IF(B44='Бланк Методички'!$V$12,3,IF(B44='Бланк Методички'!$V$13,4,IF(B44='Бланк Методички'!$V$14,5,0)))))","v":0}]
[45,{"$f":"'Бланк Методички'!O53","v":0},{"$f":"IF(B45='Бланк Методички'!$V$10,1,IF(B45='Бланк Методички'!$V$11,2,IF(B45='Бланк Методички'!$V$12,3,IF(B45='Бланк Методички'!$V$13,4,IF(B45='Бланк Методички'!$V$14,5,0)))))","v":0},0]
[46,{"$f":"'Бланк Методички'!O54","v":0},{"$f":"IF(B46='Бланк Методички'!$V$10,1,IF(B46='Бланк Методички'!$V$11,2,IF(B46='Бланк Методички'!$V$12,3,IF(B46='Бланк Методички'!$V$13,4,IF(B46='Бланк Методички'!$V$14,5,0)))))","v":0}]
[47,{"$f":"'Бланк Методички'!O55","v":0},{"$f":"IF(B47='Бланк Методички'!$V$10,1,IF(B47='Бланк Методички'!$V$11,2,IF(B47='Бланк Методички'!$V$12,3,IF(B47='Бланк Методички'!$V$13,4,IF(B47='Бланк Методички'!$V$14,5,0)))))","v":0}]
[48,{"$f":"'Бланк Методички'!O56","v":0},{"$f":"IF(B48='Бланк Методички'!$V$10,1,IF(B48='Бланк Методички'!$V$11,2,IF(B48='Бланк Методички'!$V$12,3,IF(B48='Бланк Методички'!$V$13,4,IF(B48='Бланк Методички'!$V$14,5,0)))))","v":0},0]
[49,{"$f":"'Бланк Методички'!O57","v":0},{"$f":"IF(B49='Бланк Методички'!$V$10,1,IF(B49='Бланк Методички'!$V$11,2,IF(B49='Бланк Методички'!$V$12,3,IF(B49='Бланк Методички'!$V$13,4,IF(B49='Бланк Методички'!$V$14,5,0)))))","v":0}]
[50,{"$f":"'Бланк Методички'!O58","v":0},{"$f":"IF(B50='Бланк Методички'!$V$10,1,IF(B50='Бланк Методички'!$V$11,2,IF(B50='Бланк Методички'!$V$12,3,IF(B50='Бланк Методички'!$V$13,4,IF(B50='Бланк Методички'!$V$14,5,0)))))","v":0}]
[51,{"$f":"'Бланк Методички'!O59","v":0},{"$f":"IF(B51='Бланк Методички'!$V$10,1,IF(B51='Бланк Методички'!$V$11,2,IF(B51='Бланк Методички'!$V$12,3,IF(B51='Бланк Методички'!$V$13,4,IF(B51='Бланк Методички'!$V$14,5,0)))))","v":0},0]
[52,{"$f":"'Бланк Методички'!O60","v":0},{"$f":"IF(B52='Бланк Методички'!$V$10,1,IF(B52='Бланк Методички'!$V$11,2,IF(B52='Бланк Методички'!$V$12,3,IF(B52='Бланк Методички'!$V$13,4,IF(B52='Бланк Методички'!$V$14,5,0)))))","v":0}]
[53,{"$f":"'Бланк Методички'!O61","v":0},{"$f":"IF(B53='Бланк Методички'!$V$10,1,IF(B53='Бланк Методички'!$V$11,2,IF(B53='Бланк Методички'!$V$12,3,IF(B53='Бланк Методички'!$V$13,4,IF(B53='Бланк Методички'!$V$14,5,0)))))","v":0}]

{"sheet":"Печать","index":2,"n_rows":38,"n_cols":8,"rows_kept":38,"cut":false,"hidden":false,"merged":[[10,0,10,4],[10,5,10,8],[11,0,11,4],[11,5,11,8],[13,0,14,8],[37,5,37,8],[0,0,0,8],[2,7,2,8],[2,1,2,5],[4,0,4,4],[4,5,4,8],[5,0,5,4],[5,5,5,8],[6,0,6,4],[6,5,6,8],[7,0,7,4],[7,5,7,8],[8,0,8,4],[8,5,8,8],[9,0,9,4],[9,5,9,8]]}
["Анкетирования обучающихся на предмет употребления алкоголя, наркотических и психотропных веществ и их аналогов"]
[]
["ФИО",{"$f":"PROPER('Бланк Методички'!D2)","v":""},null,null,null,null,"Дата",{"$f":"TODAY()","v":"2018-10-29"}]
[]
[{"$f":"Обработка!E1","v":"Импульсивность"},null,null,null,null,{"$f":"Обработка!E24","v":0}]
[{"$f":"Обработка!F1","v":"Слабость «Сверх-Я»"},null,null,null,null,{"$f":"Обработка!F17","v":0}]
[{"$f":"Обработка!G1","v":"Дезадаптированность "},null,null,null,null,{"$f":"Обработка!G17","v":0}]
[{"$f":"Обработка!H1","v":"Враждебность родителей"},null,null,null,null,{"$f":"Обработка!H17","v":0}]
[{"$f":"Обработка!I1","v":"Безрассудность"},null,null,null,null,{"$f":"Обработка!I17","v":0}]
[{"$f":"Обработка!J1","v":"Склонность к зависимостям"},null,null,null,null,{"$f":"Обработка!J17","v":0}]
[{"$f":"Обработка!K1","v":"Социальная желательность"},null,null,null,null,{"$f":"Обработка!K17","v":0}]
["Результат",null,null,null,null,{"$f":"SUM(F5:I11)","v":0}]
[]
[{"$f":"CONCATENATE(\"Вывод: \",IF(AND(Печать!F12>=130,Печать!F12<=160),Обработка!O1,IF(AND(Печать!F12>=Обработка!M2,Печать!F12<=Обработка!N2),Обработка!O2,IF(AND(Печать!F12>=201,Печать!F12<=265),Обработка!O3,\"Признаков нет\"))))","v":"Вывод: Признаков нет"}]
[]
[]
[]
[]
[]
[]
[]
[]
[]
[]
[]
[]
[]
[]
[]
[]
[]
[]
[]
[]
[]
[]
[]
[null,null,null,null,null,"http://eschool.by/courses/psy"]

{"sheet":"Печать с расшифровкой","index":3,"n_rows":54,"n_cols":1,"rows_kept":54,"cut":false,"hidden":false,"merged":[[2,0,11,8],[0,0,1,8],[48,0,50,8],[52,0,52,8],[53,0,55,8],[25,0,25,8],[26,0,26,8],[27,0,31,8],[32,0,32,8],[34,0,38,8],[14,0,17,8],[19,0,19,8],[20,0,24,8],[39,0,39,8],[40,0,40,8],[41,0,45,8],[46,0,46,8],[47,0,47,8],[51,0,51,8],[12,0,12,8],[13,0,13,8],[33,0,33,8],[18,0,18,8]]}
[{"$f":"Печать!A1","v":"Анкетирования обучающихся на предмет употребления алкоголя, наркотических и психотропных веществ и их аналогов"}]
[]
["Опросник дает возможность выявить наличие психологического фактора риска, оказывающего непосредственное влияние на формирование у обучающихся аддиктивных жизненных установок. Этот фактор включает: тенденцию к принятию недостаточно обдуманных, взвешенных решений, неумение организовывать свое время и порядок выполнения дел, низкий самоконтроль поведения, слабоволие, недобросовестность, безответственность, легкомысленность, беспринципность, неприятие себя и других, наличие защитных барьеров в осмыслении своего актуального опыта, кажущееся решение проблем, восприятие подростками родителей как агрессивных, чрезмерно строгих, эмоционально холодных, чрезмерно критикующих, отношение к привычкам как пассивное, слабовольное.\n"]
[]
[]
[]
[]
[]
[]
[]
[]
[]
[{"$f":"Печать!A5","v":"Импульсивность"}]
[{"$f":"Печать!F5","v":0}]
["Шкала «Импульсивность» обнаруживает тенденцию к принятию недостаточно обдуманных, взвешенных решений, неумение организовывать свое время и порядок выполнения дел. Для импульсивных подростков характерны низкий самоконтроль поведения, слабоволие."]
[]
[]
[]
[{"$f":"Печать!A6","v":"Слабость «Сверх-Я»"}]
[{"$f":"Печать!F6","v":0}]
["Шкала «Слабость Сверх-Я» выявляет недобросовестность, безответственность, легкомысленность, беспринципность. Такие подростки проявляют слабый интерес к общественным нормам и не прилагают усилий для их выполнения. Они могут презрительно относиться к моральным ценностям и ради собственной выгоды способны на нечестность и обман."]
[]
[]
[]
[]
[{"$f":"Печать!A7","v":"Дезадаптированность "}]
[{"$f":"Печать!F7","v":0}]
["Шкала «Дезадаптированность» выявляет неприятие себя и других, наличие защитных барьеров в осмыслении своего актуального опыта, кажущееся решение проблем, т.е. решение их на субъективном психологическом уровне, в собственном представлении, а не в действительности, негибкость психических процессов."]
[]
[]
[]
[]
[{"$f":"Печать!A8","v":"Враждебность родителей"}]
[{"$f":"Печать!F8","v":0}]
["Шкала «Враждебность как стиль родительского отношения» определяет восприятие подростками родителей как агрессивных, чрезмерно строгих, эмоционально холодных, чрезмерно критикующих. Подросток находится в состоянии тревожного ожидания низкой оценки его деятельности и наказания родительским отвержением."]
[]
["Во II блоке (вопросы с 16 по 30) – делинквентное (допротивоправное) поведение (ДП) - оценивается антисоциальное, противоречащее правовым нормам, угрожающее социальному порядку и благополучию окружающих людей поведение, включающее любые действия или бездействия, запрещенные законодательством.\nК числу делинквентных относятся: 1) административные правонарушения - нарушение правил дорожного движения, мелкое хулиганство, сквернословие, нецензурная брань в общественных местах, оскорбительное приставание к гражданам, распитие спиртных напитков и появление в пьяном виде в общественных местах; 2) дисциплинарные проступки - это неисполнение или ненадлежащее исполнение своих непосредственных обязанностей, для подростков это прогулы без уважительных причин занятий, появление в учебном заведении или в общественных местах в состоянии алкогольного, наркотического или токсического опьянения, распитие спиртных напитков, употребление наркотических или токсических средств по месту учебы и в учебное время, нарушение правил безопасности; 3) преступления - общественно опасные деяния, предусмотренные уголовным законом и запрещены им под угрозой наказания – кражи, причинение вреда здоровью, угоны транспорта, вандализм, терроризм и другие поступки, за которые предусматриваются меры уголовной ответственности с 16 лет, а за некоторые преступления с 14 лет; совершение деяний, признаваемых преступлениями, лицами, не достигшими уголовной ответственности, влечет применение мер воздействия, носящих воспитательный характер (помещение в специальное учебно-воспитательное учреждение и др.).\n"]
[]
[]
[{"$f":"Печать!A9","v":"Безрассудность"}]
[{"$f":"Печать!F9","v":0}]
["Шкала «Безрассудность» характеризует подростков как недостаточно спокойных и рассудительных, нетерпеливых, несдержанных. Они чувствуют себя несчастным из-за кажущейся неудовлетворенности, им всего всегда мало."]
[]
[]
[]
[]
[{"$f":"Печать!A10","v":"Склонность к зависимостям"}]
[{"$f":"Печать!F10","v":0}]
["Шкала «Общая склонность к зависимостям» определяет отношение к привычкам как пассивное, слабовольное."]
[]
[]
[{"$f":"Печать!A11","v":"Социальная желательность"}]
[{"$f":"Печать!F11","v":0}]
["Шкала «Социальная желательность» указывают на то, что подросток стремится представить себя в наилучшем свете, дает неискренние ответы."]